bitfinex-derivatives/quotes_SOLF0:USTF0_20251107
["timestamp","ask_amount","ask_price","bid_price","bid_amount"]
[1762541752606,3.12,162.17,162.14,0.04467495]
[1762541752804,3.12,162.17,162.14,0.04277055]
[1762541753606,3.12,162.17,162.08,62.0]
[1762541754003,3.12,162.15,162.08,62.0]
[1762541754400,3.12,162.15,162.1,0.04029689]
[1762541754605,3.12,162.12,162.1,0.04029689]
[1762541754804,3.12,162.12,162.09,0.04293052]
[1762541757306,4.36,162.12,162.02,8.71887583]
[1762541757603,3.12,162.11,162.02,70.71887583]
[1762541757807,5.82,162.15,162.0,3.12]
[1762541757808,3.12,162.08,162.0,3.12]
[1762541758001,3.12,162.08,161.98,8.71887583]
[1762541758407,3.12,162.04,162.01,0.04735761]
[1762541758607,3.12,162.04,161.98,8.71887583]
[1762541758801,3.16254694,162.04,162.01,0.04747573]
[1762541760804,0.04254694,162.04,162.01,3.16747573]
[1762541761004,0.04254694,162.04,162.01,0.04747573]
[1762541761005,3.16254694,162.04,162.01,0.04747573]
[1762541761207,0.04254694,162.04,162.01,0.04747573]
[1762541761806,3.16254694,162.04,162.01,0.04747573]
[1762541762008,3.16254694,162.04,161.94,11.83887583]
[1762541762210,3.12,162.04,161.94,11.83887583]
[1762541762411,3.12,162.04,161.97,5.5599]
[1762541762808,3.12,162.04,161.95,2.95]
[1762541763013,3.12,162.04,161.98,5.60550004]
[1762541763216,0.0463971,162.01,161.98,8.55550004]
[1762541763720,3.0563971,162.01,161.98,0.04580004]
[1762541763909,0.0463971,162.01,161.98,2.99580004]
[1762541764111,0.0463971,162.01,161.98,0.04580004]
[1762541764510,3.0563971,162.01,161.98,0.04580004]
[1762541765113,3.01,162.0,161.91,62.0]
[1762541765913,3.01,162.0,161.9,19.42]
[1762541766118,3.01,161.96,161.93,0.04294694]
[1762541766319,3.05344283,161.96,161.93,0.04461613]
[1762541769016,0.04344283,161.96,161.93,2.99461613]
[1762541769421,0.04344283,161.96,161.94,5.561]
[1762541769617,3.01,161.95,161.93,0.04461613]
[1762541769922,0.04344283,161.96,161.94,8.5112]
[1762541770119,0.04344283,161.96,161.93,2.99461613]
[1762541770322,0.04344283,161.96,161.93,0.04461613]
[1762541770824,0.04344283,161.96,161.94,5.5611]
[1762541771230,0.04344283,161.96,161.94,8.5111]
[1762541771527,0.04344283,161.96,161.95,2.95]
[1762541773027,3.01,162.05,161.98,5.5598]
[1762541773621,3.01,162.03,161.98,5.5598]
[1762541773819,3.01,162.02,161.98,5.5598]
[1762541774019,3.05741363,162.02,161.99,0.04091502]
[1762541775426,3.01,162.0,161.99,0.04091502]
[1762541775628,3.01,161.99,161.88,2.95]
[1762541775836,3.01,161.98,161.88,2.95]
[1762541776134,3.01,161.98,161.91,5.562]
[1762541776522,0.04567889,161.96,161.93,0.04326501]
[1762541777033,3.05567889,161.96,161.93,0.04326501]
[1762541778639,3.01,161.94,161.93,0.04326501]
[1762541778932,7.95306236,161.94,161.93,0.04326501]
[1762541779126,3.01,161.93,161.86,2.95]
[1762541779927,3.01,161.93,161.87,5.5634]
[1762541780229,8.00488743,161.92,161.88,0.04447386]
[1762541780533,3.05310485,161.92,161.88,0.04447386]
[1762541781630,0.04310485,161.92,161.88,2.99447386]
[1762541781932,8.70860939,162.0,161.89,2.95]
[1762541782234,4.95295543,161.99,161.89,2.95]
[1762541782432,7.96295543,161.98,161.89,2.95]
[1762541782632,4.95295543,161.97,161.89,2.95]
[1762541782832,5.69860939,162.0,161.93,5.5614]
[1762541783030,4.95759568,161.99,161.93,8.5114]
[1762541783240,8.0140228,161.98,161.94,0.0426267]
[1762541783438,4.95759568,161.97,161.94,0.0426267]
[1762541783742,0.04642712,161.98,161.94,2.9926267]
[1762541784236,4.96501078,161.97,161.95,5.5607]
[1762541784439,0.04642712,161.98,161.95,5.5607]
[1762541784632,4.96577482,161.97,161.95,5.5607]
[1762541784834,0.04642712,161.98,161.94,2.9926267]
[1762541785034,4.96582494,161.97,161.94,8.5535267]
[1762541785235,4.97003445,161.96,161.94,0.0426267]
[1762541785435,4.97003445,161.95,161.94,0.0426267]
[1762541785640,7.98003445,161.95,161.94,0.0426267]
[1762541786028,13.67864384,161.95,161.94,0.0426267]
[1762541786344,13.65393656,161.95,161.94,0.0426267]
[1762541787437,13.65935392,161.95,161.94,0.0426267]
[1762541787640,7.98003445,161.95,161.94,0.0426267]
[1762541787941,13.65953808,161.95,161.94,0.0426267]
[1762541788642,7.98003445,161.95,161.94,0.0426267]
[1762541788842,7.98003445,161.95,161.89,5.5627]
[1762541789141,5.68332486,161.93,161.89,5.5627]
[1762541789341,4.97003445,161.92,161.89,5.5627]
[1762541789643,4.97003445,161.91,161.89,2.95]
[1762541789941,4.97003445,161.9,161.89,2.95]
[1762541791136,4.97003445,161.9,161.88,62.04747221]
[1762541791341,4.97003445,161.89,161.88,0.04747221]
[1762541792540,4.97003445,161.89,161.88,3.11747221]
[1762541792541,3.445e-05,161.89,161.88,3.11747221]
[1762541792737,3.445e-05,161.89,161.88,0.04747221]
[1762541792941,3.445e-05,161.89,161.88,3.11747221]
[1762541793240,0.03956612,161.91,161.89,8.6329]
[1762541793636,0.03956612,161.91,161.9,3.07]
[1762541794335,0.03956612,161.91,161.9,65.07]
[1762541794532,3.12,161.97,161.91,3.07]
[1762541794741,5.68332486,162.0,161.93,8.7914311]
[1762541795141,3.12,162.01,161.93,8.7914311]
[1762541795444,3.12,162.01,161.96,5.5604]
[1762541795635,3.16106211,162.0,161.97,0.04223097]
[1762541796330,5.72438697,162.0,161.97,0.04223097]
[1762541796532,3.12,161.99,161.97,0.04223097]
[1762541796744,3.12,161.97,161.91,63.26]
[1762541797241,3.12,161.97,161.92,5.5617]
[1762541797832,3.12,161.95,161.93,5.60487046]
[1762541798032,0.0439819,161.96,161.93,3.11347046]
[1762541798344,3.1639819,161.96,161.93,0.04347046]
[1762541799437,0.0439819,161.96,161.93,3.11347046]
[1762541799839,3.1639819,161.96,161.94,5.5611]
[1762541800138,3.1639819,161.96,161.93,0.04347046]
[1762541800544,0.0439819,161.96,161.93,0.04347046]
[1762541800947,3.0339819,161.96,161.93,0.04347046]
[1762541801846,3.0339819,161.96,161.94,5.5611]
[1762541802546,3.0339819,161.96,161.93,0.04347046]
[1762541803644,0.0439819,161.96,161.93,3.04347046]
[1762541804043,10.49332486,162.02,161.95,3.0]
[1762541804342,10.56589527,162.02,161.96,3.0]
[1762541804546,4.904629,162.01,161.96,8.5602]
[1762541804849,4.904629,162.0,161.97,3.0]
[1762541805050,4.904629,161.99,161.97,3.04408141]
[1762541805344,0.04453114,162.0,161.97,3.04408141]
[1762541805947,0.04453114,162.0,161.98,8.5597]
[1762541806341,0.04453114,162.0,161.97,3.04408141]
[1762541807250,0.04453114,162.0,161.98,5.5597]
[1762541809257,0.04453114,162.0,161.97,0.04408141]
[1762541809752,4.87168463,161.99,161.97,0.04408141]
[1762541809948,7.86193219,161.98,161.97,0.04408141]
[1762541810349,2.99,161.98,161.97,0.04408141]
[1762541811053,3.03453114,162.0,161.97,0.04408141]
[1762541811249,2.99,161.98,161.97,0.04408141]
[1762541812045,3.03453114,162.0,161.97,0.04408141]
[1762541814656,2.99,161.98,161.97,0.04408141]
[1762541817859,7.86206479,161.98,161.97,0.04408141]
[1762541818062,2.99,161.95,161.87,3.0]
[1762541818957,2.99,161.92,161.89,0.04156238]
[1762541819565,2.99,161.92,161.9,5.5625]
[1762541819764,2.99,161.92,161.89,0.04156238]
[1762541820065,0.04166497,161.93,161.89,3.04156238]
[1762541820263,3.03166497,161.93,161.89,3.04156238]
[1762541820763,0.04166497,161.93,161.91,5.5621]
[1762541820962,2.99,162.0,161.92,3.0]
[1762541821360,2.99,161.98,161.92,3.0]
[1762541822061,0.04255662,161.97,161.93,3.03942155]
[1762541822767,2.92255662,161.97,161.93,0.03942155]
[1762541823363,2.88,161.96,161.93,0.03942155]
[1762541824275,0.04255662,161.97,161.85,264.93186273]
[1762541824276,2.88,161.94,161.85,264.93186273]
[1762541824465,2.88,161.92,161.83,3.07]
[1762541824868,2.88,161.89,161.83,3.07]
[1762541825262,5.75938879,161.95,161.85,3.07]
[1762541825464,2.88,161.93,161.85,3.07]
[1762541825668,2.88,161.91,161.88,0.04075189]
[1762541826466,0.04387504,161.92,161.88,0.04075189]
[1762541826666,2.92387504,161.92,161.88,3.11075189]
[1762541827070,2.92387504,161.92,161.88,0.04075189]
[1762541827467,2.92387504,161.92,161.88,8.67385189]
[1762541827663,2.92387504,161.92,161.88,0.04075189]
[1762541828666,0.04387504,161.92,161.88,3.11075189]
[1762541828868,0.04387504,161.92,161.89,3.07]
[1762541829064,0.04387504,161.92,161.91,8.7914311]
[1762541829269,2.88,162.0,161.92,3.07]
[1762541829471,2.88,162.0,161.94,5.7214311]
[1762541829670,2.88,162.0,161.94,11.2824311]
[1762541830274,0.04493916,161.99,161.95,0.0453927]
[1762541830471,0.04493916,161.99,161.95,5.6059927]
[1762541830775,0.04493916,161.99,161.97,5.7214311]
[1762541830975,0.04493916,161.99,161.97,14.3513311]
[1762541831673,0.04493916,161.99,161.97,11.2813311]
[1762541833076,2.92493916,161.99,161.95,5.6060927]
[1762541833276,2.92493916,161.99,161.95,0.0453927]
[1762541835773,0.04493916,161.99,161.97,5.7214311]
[1762541835980,0.04493916,161.99,161.97,11.2813311]
[1762541836674,7.51,162.06,162.01,3.07]
[1762541836876,2.88,162.05,162.0,5.7214311]
[1762541837474,0.03941776,162.04,162.01,5.60224815]
[1762541837784,7.51,162.06,162.04,3.07]
[1762541837976,2.88,162.12,162.04,3.07]
[1762541838177,7.70779018,162.11,162.06,5.7214311]
[1762541838375,2.88,162.11,162.06,8.7914311]
[1762541838680,2.88,162.15,162.09,5.7214311]
[1762541838982,101.26596399,162.23,162.1,0.04567023]
[1762541838983,2.88,162.13,162.1,0.04567023]
[1762541839282,2.9244665,162.13,162.1,0.04638774]
[1762541841083,2.88,162.11,162.05,5.7214311]
[1762541841580,2.88,162.1,162.02,8.7914311]
[1762541841982,0.04675032,162.08,162.04,0.04635463]
[1762541842373,2.92675032,162.08,162.04,0.04635463]
[1762541843681,8.48335032,162.08,162.04,0.04635463]
[1762541843881,2.88,162.07,162.04,0.04635463]
[1762541849092,8.4369,162.07,162.04,0.04635463]
[1762541849292,2.88,162.06,162.04,0.04635463]
[1762541851696,0.04675032,162.08,162.04,3.11635463]
[1762541851999,3.14675032,162.08,162.04,0.04635463]
[1762541852697,3.14675032,162.08,162.04,2.93635463]
[1762541853496,0.04675032,162.08,162.04,2.93635463]
[1762541854000,0.04675032,162.08,162.05,2.89]
[1762541854599,0.04675032,162.08,162.05,8.4472]
[1762541855196,0.04675032,162.08,162.06,2.89]
[1762541855893,0.04675032,162.08,162.07,2.89]
[1762541856688,0.04675032,162.08,162.04,2.93635463]
[1762541856887,0.04675032,162.08,162.05,5.5573]
[1762541857092,0.04675032,162.08,162.06,2.89]
[1762541857503,0.04675032,162.08,162.06,8.447]
[1762541857691,0.04675032,162.08,162.07,2.89]
[1762541858893,3.1,162.15,162.08,8.4463]
[1762541859091,3.1,162.15,162.05,2.89]
[1762541859789,5.5544,162.14,162.07,5.5566]
[1762541859995,3.14386246,162.12,162.08,0.04193526]
[1762541860197,3.14386246,162.12,162.08,2.93193526]
[1762541860493,3.14386246,162.12,162.08,0.04193526]
[1762541861202,3.14386246,162.12,162.08,3.12193526]
[1762541861399,0.04386246,162.12,162.08,3.12193526]
[1762541862202,0.04386246,162.12,162.09,5.5559]
[1762541862396,3.01386246,162.12,162.08,0.04193526]
[1762541863197,0.04386246,162.12,162.08,3.12193526]
[1762541864497,0.04386246,162.12,162.1,8.6356]
[1762541865500,0.04386246,162.12,162.11,3.08]
[1762541867705,0.04386246,162.12,162.1,8.6356]
[1762541867898,0.04386246,162.12,162.09,11.83212033]
[1762541868505,0.04386246,162.12,162.1,3.08]
[1762541869400,3.01386246,162.12,162.08,0.04193526]
[1762541870904,3.01386246,162.12,162.08,3.12193526]
[1762541871209,0.04386246,162.12,162.08,3.12193526]
[1762541872209,0.04386246,162.12,162.08,8.67823526]
[1762541872904,3.01386246,162.12,162.08,8.67823526]
[1762541874611,0.04386246,162.12,162.1,3.08]
[1762541875301,0.04386246,162.12,162.1,8.6356]
[1762541875503,0.04386246,162.12,162.11,3.08]
[1762541880414,5.11,162.19,162.13,3.08]
[1762541880907,5.11,162.19,162.16,8.6336]
[1762541881107,5.11,162.19,162.16,3.08]
[1762541881412,5.15449571,162.19,162.16,8.68005081]
[1762541881619,5.15449571,162.19,162.16,3.12655081]
[1762541881807,2.97,162.18,162.16,0.04655081]
[1762541882618,5.15449571,162.19,162.16,3.04655081]
[1762541882908,5.15449571,162.19,162.17,5.5532]
[1762541883116,5.15449571,162.19,162.18,3.0]
[1762541884209,9.571e-05,162.19,162.18,65.0]
[1762541884413,6.68,162.27,162.21,5.5518]
[1762541884613,4.74661308,162.26,162.2,11.75212033]
[1762541884909,6.68,162.27,162.21,8.5518]
[1762541885111,9.78,162.27,162.21,3.0]
[1762541885307,7.84064893,162.26,162.18,128.08]
[1762541885508,3.14448177,162.24,162.21,0.04212331]
[1762541885707,3.14403099,162.24,162.21,0.04169599]
[1762541887917,0.04403099,162.24,162.21,0.04169599]
[1762541888112,3.14403099,162.24,162.21,0.04169599]
[1762541889817,3.14403099,162.24,162.15,3.0]
[1762541889818,3.1,162.23,162.15,3.0]
[1762541890714,0.04752654,162.21,162.17,3.04289746]
[1762541891313,3.14752654,162.21,162.17,0.04289746]
[1762541891822,3.14752654,162.21,162.17,3.04289746]
[1762541892018,0.04752654,162.21,162.17,3.04289746]
[1762541893117,0.04752654,162.21,162.19,3.0]
[1762541893818,0.04752654,162.21,162.17,0.04289746]
[1762541893819,3.14752654,162.21,162.17,0.04289746]
[1762541894019,3.14752654,162.21,162.17,3.04289746]
[1762541894920,0.04752654,162.21,162.17,3.04289746]
[1762541895820,0.04752654,162.21,162.19,8.5524]
[1762541896210,0.04752654,162.21,162.19,3.0]
[1762541896411,3.14752654,162.21,162.17,0.04289746]
[1762541896817,3.14752654,162.21,162.17,5.59609746]
[1762541897025,3.14752654,162.21,162.17,8.59609746]
[1762541897429,3.14752654,162.21,162.18,5.5528]
[1762541899333,3.14752654,162.21,162.17,0.04289746]
[1762541899742,3.1,162.19,162.17,0.04289746]
[1762541901137,3.14752654,162.21,162.17,3.04289746]
[1762541901438,3.14752654,162.21,162.17,0.04289746]
[1762541902634,0.04752654,162.21,162.17,3.04289746]
[1762541902828,0.04752654,162.21,162.19,8.5525]
[1762541903028,0.04752654,162.21,162.19,5.5525]
[1762541904532,0.04752654,162.21,162.19,8.5525]
[1762541904841,0.04752654,162.21,162.2,3.0]
[1762541905943,6.68,162.27,162.23,3.0]
[1762541906139,9.78,162.27,162.23,3.0]
[1762541906944,9.8266934,162.27,162.23,3.04457491]
[1762541907532,6.7266934,162.27,162.23,3.04457491]
[1762541908346,3.1,162.26,162.23,0.04457491]
[1762541911246,3.1,162.24,162.23,0.04457491]
[1762541911434,3.1,162.24,162.17,5.5532]
[1762541911638,3.1,162.24,162.16,5.69750247]
[1762541911838,5.5521,162.21,162.15,5.5538]
[1762541912051,3.1,162.2,162.15,5.5538]
[1762541912441,3.00711075,162.19,162.16,0.04395282]
[1762541916451,2.96,162.18,162.16,0.04395282]
[1762541918442,2.96,162.17,162.16,0.04395282]
[1762541918648,2.96,162.16,162.09,5.69750247]
[1762541918847,2.96,162.16,162.12,5.5548]
[1762541919647,3.00044623,162.16,162.12,0.04402826]
[1762541922246,8.55424623,162.16,162.12,0.04402826]
[1762541922550,8.55424623,162.16,162.13,2.19096912]
[1762541922551,2.91,162.15,162.13,2.19096912]
[1762541923450,0.04044623,162.16,162.13,5.19096912]
[1762541923646,0.04044623,162.16,162.15,2.19096912]
[1762541924449,2.91,162.19,162.15,5.19096912]
[1762541925147,2.91,162.2,162.16,3.0]
[1762541925345,2.94999686,162.2,162.18,2.19096912]
[1762541925747,0.03999686,162.2,162.18,2.19096912]
[1762541926140,2.94999686,162.2,162.18,2.19096912]
[1762541928151,2.91,162.19,162.18,2.19096912]
[1762541928348,2.94999686,162.2,162.18,2.19096912]
[1762541929048,0.03999686,162.2,162.18,2.19096912]
[1762541929250,0.03999686,162.2,162.18,5.19096912]
[1762541929451,6.22,162.21,162.19,3.0]
[1762541929647,6.22,162.21,162.2,2.19096912]
[1762541930051,6.22,162.21,162.2,5.19096912]
[1762541930253,6.22,162.21,162.2,2.19096912]
[1762541930553,6.22,162.21,162.18,8.5529]
[1762541931049,6.22,162.21,162.19,3.0]
[1762541932148,6.22,162.21,162.19,8.5525]
[1762541932349,6.22,162.21,162.2,3.0]
[1762541937254,6.22,162.21,162.19,5.5525]
[1762541937454,9.13,162.21,162.18,3.0]
[1762541938048,6.22,162.21,162.18,8.5529]
[1762541938248,6.22,162.21,162.19,3.0]
[1762541938955,6.22,162.21,162.19,8.5524]
[1762541939454,6.22,162.21,162.2,3.0]
[1762541941656,0.04687467,162.22,162.21,8.552]
[1762541942155,0.04687467,162.22,162.21,5.552]
[1762541942350,6.89,162.25,162.24,5.5509]
[1762541942557,6.89,162.25,162.23,5.70024441]
[1762541942948,6.89,162.25,162.23,14.30144441]
[1762541944658,0.04431868,162.26,162.25,8.6006]
[1762541945754,0.04431868,162.26,162.25,5.5506]
[1762541945954,3.04431868,162.26,162.25,5.5506]
[1762541946366,0.04431868,162.26,162.25,5.5506]
[1762541947255,3.04431868,162.26,162.24,0.04390454]
[1762541947758,3.04431868,162.26,162.21,5.5517]
[1762541947958,3.04431868,162.26,162.16,8.75024441]
[1762541948159,3.0,162.26,162.16,8.75024441]
[1762541948553,3.0,162.25,162.2,5.5521]
[1762541948754,3.0,162.25,162.16,8.75024441]
[1762541949058,3.0,162.21,162.19,0.04687424]
[1762541950056,3.0,162.21,162.19,5.59937424]
[1762541951559,3.0,162.21,162.19,0.04687424]
[1762541953663,3.0,162.21,162.19,5.59937424]
[1762541953955,3.0420032,162.22,162.19,5.59937424]
[1762541954459,3.0420032,162.22,162.2,5.5522]
[1762541954850,0.0420032,162.22,162.2,10.79228282]
[1762541955063,0.0420032,162.22,162.21,3.05]
[1762541956355,0.0420032,162.22,162.2,10.79228282]
[1762541959061,3.0420032,162.22,162.2,7.74228282]
[1762541959255,3.0420032,162.22,162.19,0.04687424]
[1762541959256,3.0420032,162.22,162.19,3.09687424]
[1762541959561,3.0420032,162.22,162.19,2.23695706]
[1762541960360,3.0420032,162.22,162.19,7.78945706]
[1762541960965,3.0420032,162.22,162.19,0.04687424]
[1762541962567,0.0420032,162.22,162.2,5.24008282]
[1762541963563,3.0,162.25,162.21,3.05]
[1762541963865,3.0,162.25,162.24,2.19008282]
[1762541964759,3.0,162.25,162.23,0.04291867]
[1762541965067,3.0,162.25,162.23,2.19008282]
[1762541968265,0.04300258,162.26,162.23,5.24008282]
[1762541968472,0.04300258,162.26,162.25,2.19008282]
[1762541968864,0.04300258,162.26,162.25,5.24008282]
[1762541969373,0.04300258,162.26,162.25,2.19008282]
[1762541970464,0.04300258,162.26,162.25,3.41789052]
[1762541970965,0.04300258,162.26,162.22,3.09626359]
[1762541970966,3.04300258,162.26,162.22,0.04626359]
[1762541971174,3.04300258,162.26,162.22,3.46415411]
[1762541971672,3.0,162.24,162.22,0.04626359]
[1762541973074,2.94,162.23,162.22,0.04626359]
[1762541973862,2.94,162.22,162.17,3.41789052]
[1762541974261,5.75224785,162.26,162.17,3.41789052]
[1762541974262,2.94,162.19,162.17,3.41789052]
[1762541974464,2.94,162.19,162.13,5.5545]
[1762541974771,0.04163266,162.18,162.14,8.50629819]
[1762541974973,0.04163266,162.18,162.15,2.91]
[1762541977079,2.98163266,162.18,162.14,0.04209819]
[1762541977574,2.94,162.16,162.14,0.04209819]
[1762541977971,2.94,162.15,162.14,0.04209819]
[1762541979880,7.70573597,162.15,162.14,0.04209819]
[1762541980178,13.25993597,162.15,162.09,8.73862373]
[1762541980378,8.4942,162.15,162.09,8.73862373]
[1762541980584,2.99,162.14,162.09,8.73862373]
[1762541980767,2.99,162.14,162.09,11.68862373]
[1762541981175,3.03572502,162.13,162.1,0.04476146]
[1762541981871,0.04572502,162.13,162.1,2.99476146]
[1762541982071,3.03572502,162.13,162.1,0.04476146]
[1762541983275,0.04572502,162.13,162.1,2.99476146]
[1762541984479,0.04572502,162.13,162.11,2.95]
[1762541984678,0.04572502,162.13,162.1,8.55036146]
[1762541984882,3.03572502,162.13,162.1,0.04476146]
[1762541988277,2.99,162.11,162.1,0.04476146]
[1762541989082,2.99,162.1,162.04,2.95]
[1762541990179,2.99,162.08,162.05,0.04096097]
[1762541992185,8.5465,162.08,162.05,0.04096097]
[1762541992488,2.99,162.07,162.05,0.04096097]
[1762541992787,0.04314393,162.09,161.99,8.73862373]
[1762541992788,2.99,162.06,161.99,8.73862373]
[1762541992978,2.99,162.06,161.96,2.95]
[1762541993296,8.5477,162.05,161.98,2.95]
[1762541993482,2.99,162.05,161.98,2.95]
[1762541993783,3.03424282,162.03,162.0,5.60511874]
[1762541993990,0.04242053,162.03,162.0,8.55621477]
[1762541994189,0.04242053,162.03,162.0,2.99711477]
[1762541996291,0.04242053,162.03,162.01,3.42813616]
[1762541997193,0.04242053,162.03,162.01,6.37813616]
[1762542000297,0.04242053,162.03,162.02,2.95]
[1762542000705,3.03242053,162.03,162.01,3.42813616]
[1762542000895,3.03242053,162.03,162.0,0.04711477]
[1762542001087,3.03242053,162.03,161.96,3.42813616]
[1762542001088,2.99,161.99,161.96,3.42813616]
[1762542001292,2.99,161.99,161.94,3.42813616]
[1762542001802,2.99,162.03,161.97,3.42813616]
[1762542002191,3.17,162.01,161.98,0.04038195]
[1762542002389,3.17,162.01,161.98,0.0451474]
[1762542002698,0.04689537,162.02,161.98,3.0251474]
[1762542003004,3.21689537,162.02,161.98,3.0251474]
[1762542003199,3.17,162.0,161.98,0.0451474]
[1762542003695,3.21689537,162.02,161.98,3.0251474]
[1762542004092,3.21689537,162.02,161.98,0.0451474]
[1762542004402,3.17,161.99,161.98,0.0451474]
[1762542004596,0.04689537,162.02,161.98,0.0451474]
[1762542004796,3.17,162.01,161.98,0.0451474]
[1762542006505,3.17,162.01,161.98,3.0251474]
[1762542006901,3.17,162.01,161.98,0.0451474]
[1762542007095,0.04689537,162.02,161.98,0.0451474]
[1762542007096,0.04689537,162.02,161.98,3.0251474]
[1762542007401,0.04689537,162.02,161.99,2.98]
[1762542008192,3.21689537,162.02,161.98,0.0451474]
[1762542008806,3.17,162.0,161.98,0.0451474]
[1762542009607,5.559,162.01,161.98,0.0451474]
[1762542009910,3.17,162.0,161.98,0.0451474]
[1762542010405,3.21689537,162.02,161.98,3.0251474]
[1762542010709,3.21689537,162.02,161.91,3.42813616]
[1762542011004,5.561,161.95,161.9,2.98]
[1762542011208,3.17,161.95,161.9,2.98]
[1762542011404,3.17,161.95,161.86,6.40813616]
[1762542011606,5.562,161.92,161.86,11.97183616]
[1762542011809,3.42813616,161.99,161.87,0.04522762]
[1762542011810,3.17,161.9,161.87,0.04522762]
[1762542012111,3.21102743,161.9,161.87,0.04191781]
[1762542013604,3.17,161.88,161.87,0.04191781]
[1762542013815,3.21102743,161.9,161.87,0.04191781]
[1762542014704,8.77362743,161.9,161.87,0.04191781]
[1762542014908,3.17,161.89,161.87,0.04191781]
[1762542015711,3.17,161.87,161.8,62.0]
[1762542015913,3.17,161.85,161.76,2.98]
[1762542016106,3.17,161.83,161.72,2.98]
[1762542016311,3.17,161.78,161.7,1.07462133]
[1762542016615,3.17,161.78,161.7,2.98]
[1762542016802,0.03915035,161.76,161.72,0.04427678]
[1762542017005,3.20915035,161.76,161.72,0.04427678]
[1762542017513,3.20915035,161.76,161.68,2.98]
[1762542017514,3.17,161.73,161.65,12.84]
[1762542017906,3.17,161.72,161.65,2.98]
[1762542018615,0.04724463,161.7,161.67,0.04683194]
[1762542021311,3.21724463,161.7,161.67,0.04683194]
[1762542026520,0.04724463,161.7,161.67,3.02683194]
[1762542026821,6.13724463,161.7,161.67,3.02683194]
[1762542027512,6.13724463,161.7,161.69,2.98]
[1762542027916,5.34270247,161.7,161.69,4.22]
[1762542028119,2.47e-06,161.7,161.69,4.22]
[1762542028420,3.17,161.77,161.71,8.549]
[1762542028812,3.17,161.77,161.71,2.98]
[1762542029109,0.03941946,161.76,161.72,3.0226133]
[1762542029305,0.03941946,161.76,161.74,2.98]
[1762542029818,3.17,161.84,161.75,2.98]
[1762542030010,3.17,161.84,161.76,2.98]
[1762542030210,3.17,161.84,161.74,8.77180389]
[1762542030211,3.17,161.84,161.77,2.98]
[1762542030410,3.17,161.9,161.77,2.98]
[1762542030627,3.17,161.88,161.77,2.98]
[1762542030818,3.17,161.83,161.81,0.04364924]
[1762542031010,3.17,161.83,161.8,0.04206367]
[1762542031217,0.04580584,161.84,161.8,3.02206367]
[1762542031616,3.21580584,161.84,161.8,0.04206367]
[1762542032415,0.04580584,161.84,161.8,3.14206367]
[1762542033314,0.04580584,161.84,161.81,3.1]
[1762542033518,3.03,161.92,161.84,3.1]
[1762542033710,3.03,161.92,161.77,62.0]
[1762542033711,3.03,161.92,161.78,3.1]
[1762542033910,3.03,161.9,161.82,3.1]
[1762542034112,4.84669393,161.89,161.82,3.1]
[1762542034312,3.03,161.9,161.82,3.1]
[1762542034513,3.03,161.9,161.82,8.6652]
[1762542034710,3.07623346,161.88,161.84,0.04368589]
[1762542034916,0.04623346,161.88,161.84,3.14368589]
[1762542035117,3.07623346,161.88,161.84,0.04368589]
[1762542036220,3.03,161.86,161.84,0.04368589]
[1762542036421,7.88212518,161.85,161.84,0.04368589]
[1762542036811,3.03,161.84,161.77,62.0]
[1762542037013,3.03,161.84,161.76,62.92]
[1762542037215,4.85642355,161.83,161.76,66.02]
[1762542037418,3.03,161.84,161.76,66.02]
[1762542037725,4.83738541,161.83,161.76,66.02]
[1762542038016,0.04524833,161.81,161.78,0.04041016]
[1762542038218,0.04524833,161.81,161.78,3.14041016]
[1762542039612,3.07524833,161.81,161.78,0.04041016]
[1762542040713,13.42151112,161.8,161.78,0.04041016]
[1762542041019,8.5762,161.8,161.78,0.04041016]
[1762542041216,0.04524833,161.81,161.78,3.08041016]
[1762542046622,0.04524833,161.81,161.78,0.04041016]
[1762542046826,3.05524833,161.81,161.78,0.04041016]
[1762542047228,3.01,161.8,161.78,0.04041016]
[1762542047747,8.5761,161.8,161.78,0.04041016]
[1762542047931,5.5661,161.8,161.78,0.04041016]